bitfinex/quotes_BTCUSD_20240719
["timestamp","ask_amount","ask_price","bid_price","bid_amount"]
[1721404845870,0.00683682,65960.0,65959.0,0.077]
[1721404846070,0.00683682,65960.0,65959.0,0.42016804]
[1721404847322,0.00683682,65960.0,65959.0,0.66146804]
[1721404848361,0.00683682,65960.0,65959.0,0.23138174]
[1721404848544,0.00683682,65960.0,65959.0,0.78728839]
[1721404849529,0.00683682,65960.0,65959.0,0.93728839]
[1721404849751,0.00683682,65960.0,65959.0,0.88728839]
[1721404850348,0.00683682,65960.0,65959.0,1.04459017]
[1721404851349,0.00683682,65960.0,65959.0,0.72998352]
[1721404851544,0.00683682,65960.0,65959.0,1.04457765]
[1721404852216,0.00683682,65960.0,65959.0,0.64597587]
[1721404853257,0.00683682,65960.0,65959.0,0.80327765]
[1721404853467,0.00683682,65960.0,65959.0,1.04457765]
[1721404853667,0.00683682,65960.0,65959.0,1.09507062]
[1721404853982,0.00683682,65960.0,65959.0,1.04457592]
[1721404854187,0.00683682,65960.0,65959.0,2.40905692]
[1721404854603,0.00683682,65960.0,65959.0,2.50906629]
[1721404854819,0.00683682,65960.0,65959.0,2.91277726]
[1721404855018,0.00683682,65960.0,65959.0,2.86228429]
[1721404855218,0.00018301,65965.0,65961.0,1.51444]
[1721404855419,0.00018301,65965.0,65961.0,2.24072529]
[1721404855625,0.00018301,65965.0,65961.0,2.64494111]
[1721404855974,0.00018301,65965.0,65961.0,2.54494111]
[1721404856108,0.00018301,65965.0,65961.0,2.49442726]
[1721404856309,0.00018301,65965.0,65961.0,2.54442726]
[1721404856612,0.00018301,65965.0,65961.0,2.63534332]
[1721404856842,0.00936,65962.0,65961.0,2.63534332]
[1721404857006,0.00936,65962.0,65961.0,2.31864817]
[1721404857209,0.00936,65962.0,65961.0,2.26813432]
[1721404857415,0.00936,65962.0,65961.0,2.28213432]
[1721404857619,0.00936,65962.0,65961.0,2.0428797]
[1721404857822,0.00936,65962.0,65961.0,2.07433757]
[1721404858250,0.00936,65962.0,65961.0,2.08833757]
[1721404858614,0.00936,65962.0,65961.0,2.24563732]
[1721404859355,0.00936,65962.0,65961.0,2.29563732]
[1721404859529,0.00936,65962.0,65961.0,2.59884632]
[1721404859732,0.00936,65962.0,65961.0,2.54884632]
[1721404860370,0.00936,65962.0,65961.0,2.24563732]
[1721404860795,0.00936,65962.0,65961.0,2.24563527]
[1721404860986,0.00936,65962.0,65961.0,2.54884427]
[1721404861207,0.00936,65962.0,65961.0,1.93103801]
[1721404861387,0.00936,65962.0,65961.0,2.24562064]
[1721404862401,0.002,65969.0,65961.0,2.24562064]
[1721404862624,3.5281392,66480.0,65961.0,2.24562064]
[1721404862851,3.5281392,66480.0,65961.0,2.29562064]
[1721404862852,0.15759649,65995.0,65961.0,2.29562064]
[1721404863080,0.02148749,66033.0,65961.0,2.29562064]
[1721404863081,0.30822203,66082.0,65964.0,0.5]
[1721404863298,0.0147882,66103.0,66077.0,0.01582802]
[1721404863299,0.59744079,66088.0,66077.0,0.01582802]
[1721404863514,0.0147882,66103.0,66081.0,0.04736452]
[1721404863720,0.01162567,66105.0,66081.0,0.04736452]
[1721404863950,0.13526648,66145.0,66081.0,0.04736452]
[1721404864173,0.00203705,66717.0,66156.0,0.33000435]
[1721404864174,1.37395395,66157.0,66156.0,0.33000435]
[1721404864376,4e-05,66190.0,66189.0,0.39891691]
[1721404864377,0.07548141,66190.0,66189.0,0.39891691]
[1721404864586,0.25961002,66209.0,66196.0,0.08148283]
[1721404864587,0.07560854,66198.0,66196.0,0.08148283]
[1721404864830,0.07548261,66198.0,66197.0,1.9698152]
[1721404865041,0.25961002,66209.0,66197.0,1.9698152]
[1721404865042,0.32114963,66209.0,66208.0,0.755195]
[1721404865250,0.20771731,66209.0,66208.0,1.15773049]
[1721404865456,0.13182287,66209.0,66208.0,0.80994336]
[1721404865692,0.08660499,66209.0,66208.0,0.174039]
[1721404865900,0.08660499,66209.0,66200.0,0.41018794]
[1721404865901,0.08660499,66209.0,66193.0,0.302146]
[1721404866111,0.08660499,66209.0,66194.0,0.30214]
[1721404866319,0.46304871,66208.0,66195.0,0.14206957]
[1721404866538,0.46304871,66208.0,66168.0,0.03210269]
[1721404866539,0.0806,66200.0,66168.0,0.03210269]
[1721404866740,0.0806,66200.0,66164.0,0.07461602]
[1721404866741,0.002794,66199.0,66169.0,0.18889061]
[1721404866995,0.04880997,66209.0,66169.0,0.18889061]
[1721404866996,0.04460316,66209.0,66208.0,0.151039]
[1721404867192,0.04460316,66209.0,66171.0,0.03210269]
[1721404867193,0.07527002,66214.0,66173.0,0.40895571]
[1721404867421,0.07527002,66214.0,66167.0,0.10807494]
[1721404867422,0.065,66216.0,66174.0,0.002794]
[1721404867630,0.065,66216.0,66164.0,0.002794]
[1721404867631,0.04458784,66189.0,66164.0,0.002794]
[1721404867841,0.04458784,66189.0,66149.0,0.46304871]
[1721404867842,0.06934438,66182.0,66172.0,0.03975401]
[1721404868056,0.01024599,66195.0,66170.0,0.03975401]
[1721404868057,0.07717479,66188.0,66170.0,0.03975401]
[1721404868273,0.02939636,66184.0,66156.0,0.05]
[1721404868493,0.2,66179.0,66157.0,0.002794]
[1721404868731,0.151101,66181.0,66151.0,0.002794]
[1721404868732,0.30577376,66165.0,66151.0,0.002794]
[1721404868932,0.2,66175.0,66135.0,0.05]
[1721404869141,0.2,66175.0,66145.0,0.05]
[1721404869142,0.15112,66173.0,66145.0,0.05]
[1721404869350,0.15112,66173.0,66136.0,0.002794]
[1721404869351,0.5,66164.0,66146.0,0.002794]
[1721404869587,0.123,66172.0,66101.0,0.1142]
[1721404869588,0.25438174,66163.0,66145.0,0.151182]
[1721404869798,0.25438174,66163.0,66146.0,0.002794]
[1721404869799,0.15438174,66160.0,66146.0,0.002794]
[1721404870026,0.123,66159.0,66145.0,0.002794]
[1721404870230,0.15438174,66160.0,66142.0,0.05]
[1721404870431,0.15438174,66160.0,66135.0,0.302408]
[1721404870432,0.123,66159.0,66143.0,0.002794]
[1721404870648,0.15438174,66158.0,66137.0,0.05]
[1721404870871,0.1671,66157.0,66140.0,0.05]
[1721404871087,0.1671,66157.0,66152.0,0.12717479]
[1721404871088,0.2441,66157.0,66152.0,0.12717479]
[1721404871293,0.2,66182.0,66153.0,0.002794]
[1721404871294,0.46304871,66167.0,66153.0,0.002794]
[1721404871500,0.46304871,66161.0,66156.0,0.00879883]
[1721404871711,0.17738174,66166.0,66156.0,0.00879883]
[1721404871712,0.023,66160.0,66156.0,0.00879883]
[1721404871930,0.15438174,66160.0,66156.0,0.00879883]
[1721404872382,0.2,66186.0,66159.0,0.05]
[1721404872597,0.15438174,66185.0,66165.0,0.07717479]
[1721404872802,0.15438174,66185.0,66179.0,0.07717479]
[1721404873013,0.011505,66215.0,66181.0,0.07717479]
[1721404873221,5e-05,66220.0,66172.0,0.07717479]
[1721404873222,0.2,66213.0,66172.0,0.07717479]
[1721404873435,0.2,66213.0,66165.0,0.07717479]
[1721404873436,0.2,66199.0,66167.0,0.05]
[1721404873641,0.2,66208.0,66184.0,0.00879883]
[1721404873852,0.2,66200.0,66184.0,0.00879883]
[1721404874053,0.5,66203.0,66184.0,0.00879883]
[1721404874263,0.2,66200.0,66184.0,0.00879883]
[1721404874468,0.2,66192.0,66184.0,0.00879883]
[1721404874671,0.1475,66202.0,66148.0,0.05]
[1721404874672,0.5,66184.0,66148.0,0.05]
[1721404874917,0.5,66184.0,66155.0,0.07717479]
[1721404874918,0.15438174,66174.0,66155.0,0.07717479]
[1721404875140,0.1,66183.0,66163.0,0.07717479]
[1721404875141,0.15438174,66171.0,66163.0,0.07717479]
[1721404875342,0.1475,66202.0,66179.0,0.05]
[1721404875343,0.002794,66188.0,66179.0,0.05]
[1721404875544,0.15628288,66202.0,66187.0,0.07717479]
[1721404875545,0.45466671,66194.0,66187.0,0.07717479]
[1721404875750,0.1475,66202.0,66187.0,0.07717479]
[1721404875955,0.002794,66201.0,66187.0,0.07717479]
[1721404876371,0.002794,66201.0,66180.0,0.07717479]
[1721404876597,0.002794,66201.0,66196.0,0.07717479]
[1721404876829,0.46314871,66222.0,66206.0,0.05]
[1721404876830,0.002794,66221.0,66206.0,0.05]
[1721404877035,0.002794,66219.0,66206.0,0.05]
[1721404877307,0.002794,66219.0,66210.0,0.05]
[1721404877513,0.0661,66222.0,66184.0,0.05]
[1721404877514,0.5,66217.0,66184.0,0.05]
[1721404877734,0.0661,66222.0,66197.0,0.07717479]
[1721404877735,0.15438174,66216.0,66197.0,0.07717479]
[1721404877935,0.15438174,66216.0,66203.0,0.07717479]
[1721404878144,0.0661,66222.0,66212.0,0.151028]
[1721404878351,0.0656,66222.0,66213.0,0.002794]
[1721404878595,0.15438174,66221.0,66207.0,0.002794]
[1721404878786,0.15438174,66221.0,66201.0,0.002794]
[1721404878990,0.15438174,66221.0,66195.0,0.05]
[1721404878991,0.0656,66222.0,66196.0,0.002794]
[1721404879148,0.21998174,66222.0,66206.0,0.05]
[1721404879347,0.21998174,66222.0,66207.0,0.002794]
[1721404879557,0.21998174,66222.0,66210.0,0.07717479]
[1721404879718,0.21998174,66222.0,66211.0,0.002794]
[1721404879719,0.46304871,66220.0,66211.0,0.002794]
[1721404879920,0.46304871,66220.0,66194.0,0.07717479]
[1721404879921,0.15438174,66219.0,66195.0,0.05]
[1721404880118,0.01998174,66222.0,66210.0,0.07717479]
[1721404880367,0.01998174,66222.0,66211.0,0.002794]
[1721404880681,0.01998174,66222.0,66207.0,0.302082]
[1721404880682,0.01998174,66222.0,66207.0,0.002794]
[1721404880888,0.17436348,66222.0,66207.0,0.002794]
[1721404881095,0.17436348,66222.0,66204.0,0.002794]
[1721404881096,0.15438174,66221.0,66204.0,0.002794]
[1721404881296,0.15438174,66221.0,66199.0,0.05]
[1721404881465,0.15438174,66221.0,66194.0,0.12717479]
[1721404881466,0.24831469,66221.0,66194.0,0.12717479]
[1721404881666,0.14886074,66221.0,66201.0,0.07717479]
[1721404881846,0.023,66220.0,66202.0,0.15438174]
[1721404882047,0.023,66221.0,66204.0,0.201046]
[1721404882451,0.15438174,66220.0,66205.0,0.002794]
[1721404882651,0.11998174,66222.0,66204.0,0.05]
[1721404882652,0.123,66219.0,66204.0,0.05]
[1721404882861,0.023,66219.0,66204.0,0.05]
[1721404883050,0.023,66221.0,66206.0,0.002794]
[1721404883255,0.023,66221.0,66197.0,0.302125]
[1721404883256,0.16951391,66220.0,66156.0,0.07717479]
[1721404883468,0.16951391,66220.0,66084.0,0.58830361]
[1721404883469,0.07717479,66207.0,66084.0,0.58830361]
[1721404883668,0.07717479,66207.0,66071.0,0.002]
[1721404883669,0.002794,66089.0,66085.0,0.0105]
[1721404883865,0.002794,66089.0,66071.0,0.002]
[1721404883866,0.00263475,66090.0,66089.0,0.302622]
[1721404884095,0.5,66128.0,66077.0,0.302675]
[1721404884096,0.05,66110.0,66077.0,0.302675]
[1721404884294,0.05,66110.0,66071.0,0.002]
[1721404884295,0.0613,66115.0,66076.0,0.302681]
[1721404884451,0.0613,66115.0,66083.0,0.302649]
[1721404884653,0.023,66114.0,66082.0,0.002794]
[1721404884853,0.023,66114.0,66071.0,0.002]
[1721404884854,0.00843,66113.0,66093.0,0.07717479]
[1721404885078,0.139889,66120.0,66111.0,0.302521]
[1721404885079,0.023,66112.0,66111.0,0.302521]
[1721404885286,0.023,66112.0,66094.0,0.002794]
[1721404885287,0.060586,66112.0,66094.0,0.002794]
[1721404885494,0.2782,66142.0,66101.0,0.07717479]
[1721404885746,0.2782,66142.0,66126.0,0.151226]
[1721404885943,0.0782,66142.0,66127.0,0.151223]
[1721404886175,0.05,66148.0,66128.0,0.23155653]
[1721404886176,0.46304871,66148.0,66128.0,0.23155653]
[1721404886318,0.060563,66148.0,66142.0,0.07717479]
[1721404886533,0.060563,66148.0,66147.0,0.151178]
[1721404886732,0.46304871,66166.0,66152.0,0.151167]
[1721404886929,0.46304871,66166.0,66152.0,0.453501]
[1721404886930,0.060548,66163.0,66152.0,0.453501]
[1721404887155,0.060548,66163.0,66142.0,0.23155653]
[1721404887352,0.060548,66163.0,66149.0,0.07717479]
[1721404887550,0.060548,66163.0,66142.0,0.07717479]
[1721404887551,0.46304871,66166.0,66142.0,0.07717479]
[1721404887767,0.25438174,66153.0,66142.0,0.07717479]
[1721404887901,0.060552,66161.0,66143.0,0.002794]
[1721404888109,0.15438174,66160.0,66143.0,0.002794]
[1721404888311,0.15438174,66160.0,66149.0,0.07717479]
[1721404888513,0.51304871,66183.0,66156.0,0.07717479]
[1721404888514,0.05,66179.0,66156.0,0.07717479]
[1721404888724,0.46304871,66176.0,66163.0,0.07717479]
[1721404888935,0.05911848,66171.0,66170.0,0.07717479]
[1721404889138,0.064,66181.0,66149.0,0.07717479]
[1721404889139,0.2,66180.0,66149.0,0.07717479]
[1721404889344,0.0264,66179.0,66157.0,0.15967054]
[1721404889555,0.0264,66179.0,66159.0,0.07717479]
[1721404889556,0.15438174,66169.0,66159.0,0.07717479]
[1721404889763,0.060547,66180.0,66166.0,0.07717479]
[1721404889978,0.060547,66180.0,66173.0,0.07717479]
[1721404890186,0.060547,66180.0,66174.0,0.000794]
[1721404890393,0.064,66181.0,66175.0,0.15683838]
[1721404890590,0.064,66181.0,66173.0,0.07717479]
[1721404890591,0.064,66181.0,66176.0,0.15763332]
[1721404890855,0.064,66181.0,66176.0,0.000794]
[1721404891024,0.064,66181.0,66174.0,0.000794]
[1721404891256,0.15438174,66180.0,66174.0,0.000794]
[1721404891435,0.064,66181.0,66174.0,0.000794]
[1721404891436,0.15438174,66177.0,66174.0,0.000794]
[1721404891634,0.15438174,66175.0,66157.0,0.07717479]
[1721404891836,0.15438174,66175.0,66123.0,0.0602]
[1721404891837,0.15438174,66170.0,66158.0,0.23405328]
[1721404892010,0.15438174,66170.0,66159.0,0.15687849]
[1721404892212,0.15438174,66170.0,66158.0,0.07717479]
[1721404892213,0.0753,66194.0,66170.0,0.05]
[1721404892548,0.0753,66194.0,66193.0,0.151073]
[1721404892741,0.060514,66208.0,66197.0,0.151063]
[1721404892848,0.060514,66208.0,66193.0,0.46958866]
[1721404892849,0.46304871,66204.0,66198.0,0.39520785]
[1721404893059,0.0639,66217.0,66199.0,0.39241387]
[1721404893280,0.0639,66217.0,66200.0,0.39520787]
[1721404893281,0.2,66214.0,66200.0,0.39520787]
[1721404893479,0.2,66214.0,66152.0,0.0656]
[1721404893480,0.59123,66213.0,66164.0,0.05]
[1721404893698,0.2,66204.0,66179.0,0.46304871]
[1721404893907,0.0260518,66203.0,66180.0,0.23799041]
[1721404894110,0.0260518,66203.0,66181.0,0.23519641]
[1721404894311,0.0260518,66203.0,66182.0,0.23799041]
[1721404894312,0.16,66202.0,66182.0,0.23799041]
[1721404894672,0.16,66202.0,66167.0,0.07717479]
[1721404894673,0.123,66201.0,66168.0,0.002794]
[1721404894927,0.002794,66188.0,66169.0,0.07717479]
[1721404895135,0.002794,66188.0,66160.0,0.151148]
[1721404895136,0.19009931,66187.0,66160.0,0.151148]
[1721404895356,0.125794,66188.0,66177.0,0.07717479]
[1721404895357,0.025794,66186.0,66177.0,0.07717479]
[1721404895568,0.002794,66186.0,66185.0,0.22826579]
[1721404895778,0.0260518,66203.0,66185.0,0.07717479]
[1721404895779,0.002794,66202.0,66185.0,0.07717479]
[1721404895982,0.002794,66202.0,66199.0,0.07717479]
[1721404896193,0.002,66209.0,66192.0,0.12717479]
[1721404896194,0.002,66209.0,66200.0,0.002794]
[1721404896402,0.15438174,66208.0,66193.0,0.002794]
[1721404896614,0.15438174,66208.0,66195.0,0.002794]
[1721404896818,0.002,66209.0,66195.0,0.002794]
[1721404896819,0.15438174,66207.0,66195.0,0.002794]
[1721404897020,0.15438174,66207.0,66182.0,0.05]
[1721404897021,0.01563817,66206.0,66186.0,0.002794]
[1721404897225,0.15438174,66205.0,66187.0,0.12542049]
[1721404897427,0.15438174,66205.0,66174.0,0.002794]
[1721404897658,0.15438174,66197.0,66175.0,0.12543667]
[1721404897861,0.1,66196.0,66166.0,0.002794]
[1721404898033,0.1,66196.0,66168.0,0.002794]
[1721404898034,0.17738174,66195.0,66168.0,0.002794]
[1721404898240,0.023,66195.0,66193.0,0.07717479]
[1721404898441,0.060513,66218.0,66194.0,0.002794]
[1721404898642,0.61743045,66208.0,66194.0,0.002794]
[1721404898863,0.00676187,66216.0,66208.0,0.00128206]
[1721404899536,0.00834,66224.0,66208.0,0.00128206]
[1721404899940,0.00834,66224.0,66208.0,0.30336006]
[1721404900076,0.00834,66224.0,66208.0,0.00128206]
[1721404900280,0.00834,66224.0,66208.0,0.6587808]
[1721404900502,0.00834,66224.0,66223.0,0.151004]
[1721404900705,0.00834,66224.0,66212.0,0.002794]
[1721404900903,0.09118175,66224.0,66223.0,0.151004]
[1721404901217,0.00834,66224.0,66223.0,0.151004]
[1721404901443,0.00834,66224.0,66223.0,1.43675729]
[1721404901637,0.0124796,66227.0,66225.0,0.805]
[1721404901856,0.0124796,66227.0,66225.0,0.12532379]
[1721404902060,0.0124796,66227.0,66211.0,0.302064]
[1721404902256,0.0124796,66227.0,66210.0,0.302066]
[1721404902257,0.13956273,66225.0,66210.0,0.302066]
[1721404902464,0.13956273,66225.0,66209.0,0.302072]
[1721404902465,0.15438174,66224.0,66209.0,0.302072]
[1721404902674,0.15438174,66224.0,66202.0,0.05]
[1721404902889,0.13956273,66225.0,66203.0,0.002794]
[1721404902890,0.46304871,66220.0,66203.0,0.002794]
[1721404903103,0.21612478,66219.0,66194.0,0.05]
[1721404903306,1.3618561,66226.0,66209.0,0.23155653]
[1721404903523,1.3618561,66226.0,66225.0,0.151]
[1721404903716,1.3618561,66226.0,66218.0,0.151015]
[1721404904228,1.3618561,66226.0,66216.0,0.07717479]
[1721404904229,1.3568561,66226.0,66225.0,0.453]
[1721404904433,1.3568561,66226.0,66219.0,0.20717574]
[1721404904434,1.3568561,66226.0,66219.0,0.15438174]
[1721404904639,1.49541883,66226.0,66209.0,0.07717479]
[1721404904842,1.49541883,66226.0,66204.0,0.1255]
[1721404904843,1.49541883,66226.0,66212.0,0.151027]
[1721404905049,1.49541883,66226.0,66204.0,0.05]
[1721404905332,1.3568561,66226.0,66219.0,0.05]
[1721404905542,1.3568561,66226.0,66220.0,0.15438174]
[1721404905933,1.3568561,66226.0,66216.0,0.302039]
[1721404906154,1.3568561,66226.0,66212.0,0.05]
[1721404906360,1.3568561,66226.0,66196.0,0.002794]
[1721404906361,0.2,66222.0,66213.0,0.002794]
[1721404906569,0.09123,66224.0,66203.0,0.05]
[1721404906570,0.1,66221.0,66203.0,0.05]
[1721404906724,0.0614,66224.0,66203.0,0.302099]
[1721404906926,0.23856273,66225.0,66218.0,0.05]
[1721404906927,0.1,66225.0,66218.0,0.05]
[1721404907145,0.1,66225.0,66217.0,0.05]
[1721404907495,0.1,66225.0,66218.0,0.30203]
[1721404907809,0.1,66225.0,66209.0,0.0145]
[1721404908017,0.1,66225.0,66153.0,0.0178855]
[1721404908018,0.2,66205.0,66153.0,0.0178855]
[1721404908226,0.2,66205.0,66135.0,0.302409]
[1721404908227,0.09123,66175.0,66135.0,0.302409]
[1721404908399,0.831697,66204.0,66139.0,0.302392]
[1721404908400,0.09123,66164.0,66139.0,0.302392]
[1721404908602,0.09123,66164.0,66131.0,0.05]
[1721404908799,0.09123,66164.0,66124.0,0.05]
[1721404909051,0.09123,66162.0,66150.0,0.06057379]
[1721404909249,0.09123,66162.0,66135.0,0.05]
[1721404909451,0.09123,66162.0,66143.0,0.05]
[1721404909452,0.19123,66162.0,66143.0,0.05]
[1721404909658,0.19123,66162.0,66132.0,0.05]
[1721404909659,0.19123,66162.0,66144.0,0.151184]
[1721404909992,0.19123,66162.0,66144.0,0.002794]
[1721404910166,0.023,66161.0,66150.0,0.000913]
[1721404910345,0.18184474,66160.0,66150.0,0.000913]
[1721404910552,0.1,66159.0,66150.0,0.000913]
[1721404910758,0.15438174,66158.0,66150.0,0.000913]
[1721404910965,0.123,66157.0,66150.0,0.000913]
[1721404911135,0.15438174,66156.0,66150.0,0.000913]
[1721404911336,0.15383747,66155.0,66150.0,0.000913]
[1721404911541,0.25438174,66154.0,66150.0,0.000913]
[1721404911737,0.023,66153.0,66150.0,0.000913]
[1721404911944,0.15438174,66152.0,66150.0,0.000913]
[1721404912147,0.123,66151.0,66150.0,0.000913]
[1721404912467,0.27738174,66151.0,66150.0,0.000913]
[1721404912802,0.39634991,66151.0,66150.0,0.000913]
[1721404913001,0.20149614,66151.0,66150.0,0.000913]
[1721404913229,0.0604,66163.0,66150.0,0.85637024]
[1721404913425,0.2,66171.0,66162.0,0.07717479]
[1721404913629,0.46304871,66195.0,66170.0,0.07717479]
[1721404913630,0.0651,66194.0,66170.0,0.07717479]
[1721404913837,0.0651,66194.0,66184.0,0.07717479]
[1721404914042,0.0651,66194.0,66177.0,0.07717479]
[1721404914244,0.14404487,66193.0,66170.0,0.07717479]
[1721404914426,0.0651,66194.0,66183.0,0.07717479]
[1721404914666,0.0651,66194.0,66170.0,0.07717479]
[1721404914667,0.15438174,66184.0,66170.0,0.07717479]
[1721404914874,0.0651,66194.0,66177.0,0.07717479]
[1721404915079,0.0651,66194.0,66182.0,0.04680318]
[1721404915080,0.002794,66193.0,66182.0,0.04680318]
[1721404915255,0.023,66193.0,66187.0,0.07717479]
[1721404915513,0.00881,66192.0,66188.0,0.07717479]
[1721404915714,0.00881,66192.0,66170.0,0.07717479]
[1721404915715,0.023,66191.0,66170.0,0.07717479]
[1721404915923,0.023,66191.0,66177.0,0.07717479]
[1721404916128,0.023,66191.0,66170.0,0.07717479]
[1721404916129,0.023,66191.0,66186.0,0.07717479]
[1721404916342,0.00151451,66263.0,66187.0,0.12542937]
[1721404916343,0.002794,66224.0,66187.0,0.12542937]
[1721404916525,0.002794,66225.0,66190.0,0.01792312]
[1721404916828,0.002794,66225.0,66191.0,0.12542937]
[1721404917091,0.002794,66225.0,66186.0,0.07717479]
[1721404917092,0.002794,66225.0,66203.0,0.453151]
[1721404917354,0.002794,66225.0,66196.0,0.05]
[1721404917355,0.082394,66225.0,66211.0,0.302061]
[1721404917569,0.082394,66225.0,66186.0,0.07717479]
[1721404917570,0.0796,66225.0,66212.0,0.12537057]
[1721404917771,0.0796,66225.0,66199.0,0.0178936]
[1721404917984,0.002794,66224.0,66213.0,0.151027]
[1721404918212,0.0796,66225.0,66209.0,0.302071]
[1721404918413,0.0796,66225.0,66207.0,0.15104]
[1721404918616,0.002794,66224.0,66208.0,0.12537258]
[1721404918816,0.0796,66225.0,66218.0,0.302029]
[1721404918817,1e-08,66225.0,66218.0,0.302029]
[1721404919019,1.3576861,66226.0,66225.0,0.15203846]
[1721404919227,1.4372861,66226.0,66225.0,0.15203846]
[1721404919436,1.4372861,66226.0,66225.0,0.30303846]
[1721404919643,1.4372861,66226.0,66225.0,0.75603846]
[1721404919851,1.4372861,66226.0,66225.0,0.00103846]
[1721404920058,1.59166784,66226.0,66225.0,0.00103846]
[1721404920278,1.4372861,66226.0,66225.0,0.45403846]
[1721404920480,1.4372861,66226.0,66225.0,1.18337598]
[1721404920690,1.4372861,66226.0,66225.0,1.53537598]
[1721404920893,1.4372861,66226.0,66225.0,0.88137598]
[1721404921102,1.3872861,66226.0,66225.0,1.23337598]
[1721404921310,1.3872861,66226.0,66225.0,1.80545772]
[1721404921944,1.1040387,66226.0,66225.0,1.80545772]
[1721404922149,1.1040387,66226.0,66225.0,2.10745772]
[1721404922356,0.00148549,66237.0,66228.0,1.106954]
[1721404922565,0.002,66249.0,66239.0,0.250968]
[1721404922824,0.002,66249.0,66243.0,1.458631]
[1721404923029,0.002,66249.0,66246.0,0.05]
[1721404923239,0.002,66269.0,66246.0,0.05]
[1721404923240,0.002,66269.0,66249.0,0.05]
[1721404923446,0.002,66269.0,66247.0,0.1458]
[1721404923447,0.002,66269.0,66259.0,1.40820175]
[1721404923654,0.002,66269.0,66259.0,1.88531217]
[1721404923853,0.002,66269.0,66259.0,2.18715717]
[1721404923854,1.31775129,66260.0,66259.0,2.18715717]
[1721404924067,1.31775129,66260.0,66259.0,2.87715717]
[1721404924275,1.31775129,66260.0,66259.0,3.03153891]
[1721404924276,0.98731234,66260.0,66259.0,3.03153891]
[1721404924510,0.54174034,66260.0,66259.0,3.03153891]
[1721404924736,0.00010025,66321.0,66259.0,3.03153891]
[1721404924738,0.48160175,66319.0,66318.0,0.150788]
[1721404924963,0.48160175,66319.0,66318.0,1.24808777]
[1721404925180,0.48160175,66319.0,66318.0,1.17818096]
[1721404925181,0.02120374,66319.0,66318.0,1.17818096]
[1721404925400,0.02120374,66319.0,66318.0,1.35449254]
[1721404925604,0.87046874,66320.0,66319.0,1.10540175]
[1721404925837,0.87046874,66320.0,66319.0,1.70425013]
[1721404926045,0.06991499,66333.0,66319.0,1.70425013]
[1721404926046,0.06991499,66333.0,66328.0,1.15525775]
[1721404926257,0.06991499,66333.0,66328.0,1.60490695]
[1721404926471,0.06991499,66333.0,66332.0,0.85368175]
[1721404926472,0.00961799,66333.0,66332.0,0.85368175]
[1721404926677,0.08208643,66343.0,66342.0,1.09986946]
[1721404926886,0.08208643,66343.0,66342.0,1.40133746]
[1721404927101,0.08208643,66343.0,66342.0,1.09986946]
[1721404927300,0.08208643,66343.0,66342.0,0.49693346]
[1721404927506,0.08208643,66343.0,66342.0,0.6513152]
[1721404927714,0.08208643,66343.0,66342.0,0.49693346]
[1721404927948,0.08208643,66343.0,66319.0,0.07717479]
[1721404927949,0.08027864,66351.0,66348.0,0.15072]
[1721404928153,0.01837864,66351.0,66348.0,0.15072]
[1721404928565,0.01837864,66351.0,66308.0,0.05]
[1721404928566,0.01837864,66351.0,66337.0,0.04473146]
[1721404928773,0.01837864,66351.0,66318.0,0.301576]
[1721404928774,0.07717479,66348.0,66334.0,0.04473146]
[1721404929057,0.01837864,66351.0,66346.0,0.150724]
[1721404929058,0.0801,66347.0,66346.0,0.150724]
[1721404929270,0.01837864,66351.0,66348.0,0.79833146]
[1721404929802,0.00930586,66352.0,66329.0,0.04473146]
[1721404930043,0.07717479,66347.0,66331.0,0.46304871]
[1721404930264,0.15438174,66348.0,66324.0,0.04473146]
[1721404930265,0.07717479,66345.0,66324.0,0.04473146]
[1721404930487,0.01365982,66351.0,66333.0,0.46304871]
[1721404930488,0.01680416,66347.0,66333.0,0.46304871]
[1721404930685,0.01680416,66347.0,66334.0,0.002794]
[1721404930686,0.07717479,66340.0,66334.0,0.002794]
[1721404930892,0.023,66339.0,66337.0,0.46304871]
[1721404931095,0.01365982,66351.0,66322.0,0.04473146]
[1721404931096,0.023,66345.0,66322.0,0.04473146]
[1721404931303,0.1,66352.0,66337.0,0.04473146]
[1721404931521,0.20035647,66355.0,66338.0,0.002794]
[1721404931726,0.12318168,66355.0,66332.0,0.04473146]
[1721404932135,0.12318168,66355.0,66324.0,0.04473146]
[1721404932136,0.20035647,66355.0,66324.0,0.04473146]
[1721404932359,0.15438174,66354.0,66326.0,0.301538]
[1721404932570,0.1,66353.0,66327.0,0.002794]
[1721404932782,0.1,66353.0,66295.0,0.301681]
[1721404932783,0.0647,66345.0,66317.0,0.04473146]
[1721404933009,0.0647,66345.0,66319.0,0.04473146]
[1721404933010,0.15334328,66339.0,66319.0,0.04473146]
[1721404933224,0.15334328,66339.0,66315.0,0.07717479]
[1721404933225,0.106,66344.0,66329.0,0.04473146]
[1721404933435,0.078,66344.0,66343.0,0.150731]
[1721404933633,0.078,66344.0,66321.0,0.05]
[1721404933634,0.1,66343.0,66326.0,0.04473146]
[1721404933851,0.1,66343.0,66297.0,0.002794]
[1721404933852,0.1,66343.0,66314.0,0.04473146]
[1721404934065,0.30511874,66341.0,66318.0,0.150787]
[1721404934270,0.30511874,66341.0,66311.0,0.34633646]
[1721404934271,0.15438174,66338.0,66319.0,0.002794]
[1721404934490,0.07717479,66336.0,66311.0,0.301605]
[1721404934694,0.15438174,66337.0,66309.0,0.301614]
[1721404934695,0.15438174,66331.0,66309.0,0.301614]
[1721404934906,0.123,66330.0,66306.0,0.30163]
[1721404935115,0.123,66330.0,66305.0,0.04473146]
[1721404935380,0.24741991,66329.0,66306.0,0.002794]
[1721404935593,0.0653,66329.0,66319.0,0.04473146]
[1721404936022,0.1653,66329.0,66316.0,0.04473146]
[1721404936226,0.1653,66329.0,66311.0,0.07717479]
[1721404936227,0.023,66328.0,66317.0,0.150789]
[1721404936430,0.023,66328.0,66315.0,0.19552446]
[1721404936671,0.15438174,66327.0,66314.0,0.150796]
[1721404936891,0.023,66326.0,66312.0,0.150801]